bitfinex-derivatives/quotes_BTCF0:USTF0_20251119
["timestamp","ask_amount","ask_price","bid_price","bid_amount"]
[1763525920289,0.05947356,91691.0,91690.0,0.05613]
[1763525920482,0.02945,91682.0,91681.0,0.32052918]
[1763525920787,0.02945,91687.0,91686.0,0.1652787]
[1763525920991,0.00016356,91691.0,91686.0,0.1652787]
[1763525920992,0.00219803,91690.0,91689.0,0.05613]
[1763525922089,0.00016356,91691.0,91690.0,0.1652743]
[1763525923081,0.05947356,91691.0,91690.0,0.05613]
[1763525923282,0.00016356,91691.0,91690.0,0.05613]
[1763525924284,0.00216356,91691.0,91690.0,0.06998]
[1763525924479,0.00416356,91691.0,91690.0,0.06998]
[1763525924681,0.06347356,91691.0,91690.0,0.05613]
[1763525924988,0.06347356,91691.0,91690.0,0.29205]
[1763525925190,0.06347356,91691.0,91690.0,0.32041]
[1763525925775,0.00416356,91691.0,91690.0,0.33874]
[1763525926085,0.3608,91713.0,91704.0,0.05613]
[1763525926385,0.08670519,91722.0,91704.0,0.4295376]
[1763525926582,0.08670519,91722.0,91712.0,0.109117]
[1763525926779,0.02030803,91720.0,91712.0,0.109117]
[1763525927182,0.39025,91715.0,91714.0,0.02777]
[1763525927381,0.42011,91715.0,91714.0,0.05613]
[1763525928784,0.42611,91715.0,91714.0,0.05613]
[1763525929584,0.3668,91715.0,91714.0,0.05613]
[1763525929787,0.39625,91715.0,91714.0,0.05613]
[1763525929986,0.42611,91715.0,91714.0,0.05613]
[1763525930792,0.006,91715.0,91714.0,0.05613]
[1763525931502,0.3608,91723.0,91722.0,0.05613]
[1763525931793,3.56e-06,91725.0,91724.0,0.05613]
[1763525931981,0.42011,91744.0,91743.0,0.05613]
[1763525933180,0.42011,91744.0,91743.0,0.02777]
[1763525933381,0.42011,91744.0,91743.0,0.05613]
[1763525933589,0.3608,91744.0,91743.0,0.05613]
[1763525934394,0.42111,91744.0,91743.0,0.05613]
[1763525934596,0.42211,91744.0,91743.0,0.05613]
[1763525936296,0.3628,91744.0,91743.0,0.05613]
[1763525936500,0.002,91744.0,91743.0,0.05613]
[1763525936996,0.00016356,91753.0,91752.0,0.05613]
[1763525937190,0.02961356,91753.0,91752.0,0.1652005]
[1763525938298,0.03161356,91753.0,91752.0,0.1652005]
[1763525938796,0.00216356,91753.0,91752.0,0.1652005]
[1763525939801,0.00116356,91753.0,91752.0,0.1652005]
[1763525940195,0.00016356,91753.0,91752.0,0.5260005]
[1763525940398,0.3608,91761.0,91760.0,0.165581]
[1763525940593,0.41834,91761.0,91760.0,0.165581]
[1763525940983,0.41834,91761.0,91760.0,0.05652]
[1763525942499,0.01835,91755.0,91752.0,0.3608]
[1763525942696,0.05754,91753.0,91752.0,0.41732]
[1763525942997,0.05754,91753.0,91752.0,0.6814]
[1763525943204,0.05754,91753.0,91752.0,0.62488]
[1763525943397,0.38972,91761.0,91760.0,0.02863]
[1763525943700,0.05754,91756.0,91755.0,0.1655859]
[1763525943998,0.05973803,91760.0,91759.0,0.1655822]
[1763525944194,0.00219803,91760.0,91759.0,0.1655822]
[1763525945404,0.05973803,91760.0,91759.0,0.1655822]
[1763525945591,0.07343803,91760.0,91759.0,0.02863]
[1763525945797,0.05754,91753.0,91752.0,0.38943]
[1763525946004,0.05754,91753.0,91752.0,0.68136]
[1763525947110,0.05754,91753.0,91752.0,0.32056]
[1763525947899,0.3608,91761.0,91760.0,0.165581]
[1763525948301,0.41834,91761.0,91760.0,0.165581]
[1763525948496,0.3608,91761.0,91760.0,0.165581]
[1763525949506,0.3608,91761.0,91760.0,0.429541]
[1763525950308,0.38972,91761.0,91760.0,0.429541]
[1763525950608,0.41834,91761.0,91760.0,0.32048]
[1763525951001,0.41834,91761.0,91760.0,0.165581]
[1763525951204,0.41834,91761.0,91760.0,0.05652]
[1763525951501,0.41834,91761.0,91760.0,0.32044]
[1763525954610,0.3608,91761.0,91760.0,0.32044]
[1763525954809,0.00016347,91770.0,91765.0,0.05652]
[1763525955005,0.05781243,91766.0,91765.0,0.05652]
[1763525955201,0.05781243,91766.0,91765.0,0.32044]
[1763525955407,0.02919243,91766.0,91765.0,0.32044]
[1763525956108,0.03019243,91766.0,91765.0,0.32044]
[1763525956315,0.05881243,91766.0,91765.0,0.32044]
[1763525956808,0.05881243,91766.0,91765.0,0.05652]
[1763525957007,0.05881243,91766.0,91765.0,0.3204]
[1763525958216,0.05881243,91766.0,91765.0,0.29251]
[1763525958513,0.05981243,91766.0,91765.0,0.29251]
[1763525958716,0.05881243,91766.0,91765.0,0.29251]
[1763525958900,0.05981243,91766.0,91765.0,0.29251]
[1763525960302,0.08617917,91766.0,91765.0,0.29251]
[1763525960504,0.08617917,91766.0,91765.0,0.26388]
[1763525960712,0.08617917,91766.0,91765.0,0.3204]
[1763525960915,0.08617917,91766.0,91765.0,0.29251]
[1763525961704,0.08517917,91766.0,91765.0,0.29251]
[1763525961911,0.08517917,91766.0,91764.0,0.1090551]
[1763525961912,0.01835,91760.0,91756.0,0.00016347]
[1763525962119,0.5234445,91757.0,91756.0,0.00016347]
[1763525962415,0.5234445,91757.0,91720.0,0.14911882]
[1763525962416,0.05059,91729.0,91728.0,0.05169]
[1763525962812,0.05059,91729.0,91728.0,0.31553]
[1763525963118,0.02593,91729.0,91728.0,0.31553]
[1763525963318,0.41139,91741.0,91740.0,0.1607748]
[1763525963520,0.43777815,91741.0,91740.0,0.1607748]
[1763525964123,0.05059,91739.0,91738.0,0.109086]
[1763525964415,0.07597815,91739.0,91738.0,0.135196]
[1763525964613,0.07597815,91739.0,91738.0,0.02611]
[1763525964815,0.05059,91732.0,91731.0,0.05185347]
[1763525966623,0.02466,91740.0,91739.0,0.1607754]
[1763525966808,0.07918174,91740.0,91739.0,0.1607754]
[1763525967008,0.07918174,91740.0,91739.0,0.1351954]
[1763525968121,0.07918174,91740.0,91739.0,0.1607754]
[1763525968319,0.02859174,91740.0,91739.0,0.1607754]
[1763525968623,0.05416174,91740.0,91739.0,0.1607754]
[1763525968922,0.08093174,91740.0,91739.0,0.4245354]
[1763525969219,0.02859174,91740.0,91739.0,0.4245354]
[1763525970013,0.00219803,91740.0,91739.0,0.4245354]
[1763525970218,0.05453803,91740.0,91739.0,0.31545]
[1763525970417,0.00219803,91740.0,91739.0,0.31545]
[1763525970615,0.05250347,91750.0,91749.0,0.159494]
[1763525970924,0.08108435,91750.0,91749.0,0.159494]
[1763525971112,0.16788521,91750.0,91749.0,0.159494]
[1763525971309,0.02874435,91750.0,91749.0,0.159494]
[1763525971516,0.02874435,91750.0,91749.0,0.423214]
[1763525971719,0.05431435,91750.0,91749.0,0.423214]
[1763525971912,0.05531435,91750.0,91749.0,0.423214]
[1763525972109,0.08208435,91750.0,91749.0,0.28952]
[1763525972312,0.05234,91744.0,91743.0,0.41122]
[1763525972510,0.41314,91744.0,91743.0,0.02576]
[1763525972718,0.05453803,91740.0,91739.0,0.05042]
[1763525972921,0.05453803,91740.0,91739.0,0.31414]
[1763525973114,0.05453803,91740.0,91739.0,0.05042]
[1763525973323,0.05453803,91740.0,91739.0,0.26372]
[1763525973508,0.05453803,91740.0,91739.0,0.31414]
[1763525975618,0.00219803,91740.0,91739.0,0.31414]
[1763525975823,0.00016347,91750.0,91749.0,0.05042]
[1763525976011,0.02810281,91750.0,91749.0,0.05042]
[1763525976214,0.02810281,91750.0,91749.0,0.1594941]
[1763525976626,0.02590478,91750.0,91749.0,0.1594941]
[1763525976823,0.08556666,91766.0,91765.0,0.159475]
[1763525977126,0.08556666,91766.0,91765.0,0.423195]
[1763525977714,0.00027243,91766.0,91765.0,0.423195]
[1763525978716,0.00016347,91775.0,91774.0,0.1594643]
[1763525978919,0.00016347,91775.0,91774.0,0.4232243]
[1763525980125,0.05250347,91775.0,91774.0,0.4232243]
[1763525980326,0.00016347,91775.0,91774.0,0.4232243]
[1763525980918,0.00016347,91775.0,91774.0,0.7840243]
[1763525982118,0.41314,91790.0,91789.0,0.1594465]
[1763525982334,0.36299803,91790.0,91789.0,0.1594465]
[1763525983233,0.36399803,91790.0,91789.0,0.1594465]
[1763525983626,0.36399803,91790.0,91789.0,0.05042]
[1763525983627,0.43141803,91790.0,91789.0,0.05042]
[1763525983821,0.43141803,91790.0,91787.0,0.26372]
[1763525983822,0.02557,91788.0,91787.0,0.26372]
[1763525984024,0.02557,91788.0,91787.0,0.28948]
[1763525984025,0.05234,91788.0,91787.0,0.28948]
[1763525984226,0.05234,91781.0,91780.0,0.05058347]
[1763525984728,0.05234,91781.0,91780.0,0.31430347]
[1763525985130,0.41314,91781.0,91780.0,0.00016347]
[1763525985424,0.41314,91781.0,91780.0,0.26384347]
[1763525987030,0.41314,91781.0,91780.0,0.00016347]
[1763525988023,0.05234,91756.0,91755.0,0.3608]
[1763525988227,0.05234,91756.0,91755.0,0.7839669]
[1763525989131,0.02557,91756.0,91755.0,0.7839669]
[1763525992038,0.05234,91756.0,91755.0,0.7839669]
[1763525992423,0.00016347,91765.0,91764.0,0.1749362]
[1763525992626,0.00016347,91765.0,91764.0,0.4386162]
[1763525992827,0.02573347,91765.0,91764.0,0.4386162]
[1763525993028,0.00016347,91765.0,91764.0,0.4386162]
[1763525993227,0.05250347,91765.0,91764.0,0.3141]
[1763525995333,0.00016347,91765.0,91764.0,0.32956]
[1763525995730,0.00016347,91765.0,91764.0,0.69036]
[1763526001131,0.3608,91781.0,91780.0,0.155487]
[1763526002143,0.40915,91781.0,91780.0,0.155487]
[1763526002333,0.04835,91779.0,91778.0,0.2636]
[1763526002537,0.04835,91772.0,91771.0,0.00016347]
[1763526002739,0.04835,91772.0,91771.0,0.26372347]
[1763526004744,0.04935,91772.0,91771.0,0.26372347]
[1763526004949,0.04935,91772.0,91771.0,0.31017347]
[1763526005130,0.04835,91772.0,91771.0,0.04661347]
[1763526005335,0.3608,91782.0,91781.0,0.02425]
[1763526005530,0.3608,91782.0,91781.0,0.1554858]
[1763526005843,0.42494,91782.0,91781.0,0.04645]
[1763526006034,0.04835,91781.0,91780.0,0.2636]
[1763526006434,0.04835,91781.0,91780.0,0.2858]
[1763526006636,0.04835,91781.0,91780.0,0.394837]
[1763526006839,0.04835,91781.0,91780.0,0.419087]
[1763526007033,0.04835,91781.0,91780.0,0.2636]
[1763526007238,0.04835,91781.0,91780.0,0.31005]
[1763526008036,0.04835,91781.0,91780.0,0.2636]
[1763526008746,0.04935,91781.0,91780.0,0.2636]
[1763526009738,0.05035,91781.0,91780.0,0.2636]
[1763526010145,0.04935,91781.0,91780.0,0.2636]
[1763526010447,0.0757034,91781.0,91780.0,0.2636]
[1763526010636,0.0757034,91781.0,91780.0,0.2858]
[1763526010841,0.0747034,91781.0,91780.0,0.2858]
[1763526011044,0.0757034,91781.0,91780.0,0.2858]
[1763526012241,0.0747034,91781.0,91780.0,0.31005]
[1763526012450,0.0757034,91781.0,91780.0,0.31005]
[1763526012742,0.0273534,91781.0,91780.0,0.31005]
[1763526013243,0.0757034,91781.0,91780.0,0.31005]
[1763526013443,0.0747034,91781.0,91780.0,0.31005]
[1763526013648,0.0757034,91781.0,91780.0,0.31005]
[1763526014045,0.4355034,91781.0,91780.0,0.31005]
[1763526014241,0.4365034,91781.0,91780.0,0.31005]
[1763526014638,0.4365034,91781.0,91771.0,0.47001107]
[1763526014639,0.04835,91772.0,91771.0,0.47001107]
[1763526014850,0.04835,91772.0,91771.0,0.51646107]
[1763526015143,0.07372711,91772.0,91771.0,0.51646107]
[1763526015350,0.07372711,91772.0,91771.0,0.15566107]
[1763526015741,0.07472711,91772.0,91771.0,0.15566107]
[1763526015937,0.07572711,91772.0,91771.0,0.00016347]
[1763526016142,0.18477361,91772.0,91771.0,0.00016347]
[1763526017846,0.18477361,91772.0,91743.0,0.07819078]
[1763526017847,0.1090789,91745.0,91733.0,0.09760864]
[1763526018041,0.1090976,91729.0,91728.0,0.0148]
[1763526018243,0.39835461,91729.0,91728.0,0.0148]
[1763526018549,0.74697701,91729.0,91728.0,0.06125]
[1763526018944,0.74597701,91729.0,91728.0,0.06125]
[1763526019149,0.32446,91729.0,91728.0,0.06125]
[1763526019350,0.00016347,91738.0,91737.0,0.04645]
[1763526019542,0.00016347,91738.0,91737.0,0.1555381]
[1763526021145,0.28812,91742.0,91741.0,0.1555334]
[1763526021344,0.28812,91742.0,91741.0,0.4194934]
[1763526021545,0.28812,91742.0,91741.0,0.31041]
[1763526027145,0.34597,91742.0,91741.0,0.26396]
[1763526028356,0.05936,91729.0,91728.0,0.3608]
[1763526028557,0.05936,91729.0,91728.0,0.3671]
[1763526028856,0.05936,91729.0,91728.0,0.3734]
[1763526029351,0.0297,91729.0,91728.0,0.4824988]
[1763526029552,0.02822,91729.0,91728.0,0.4824988]
[1763526030756,0.02005803,91730.0,91728.0,0.4824988]
[1763526031054,0.04827803,91730.0,91729.0,0.0126]
[1763526031255,0.05788,91729.0,91728.0,0.3608]
[1763526031459,0.05788,91727.0,91726.0,0.00027255]
[1763526031759,0.38085803,91730.0,91719.0,0.00016347]
[1763526031760,0.07574,91720.0,91719.0,0.00016347]
[1763526032060,0.43873803,91720.0,91719.0,0.00016347]
[1763526032360,0.54784633,91720.0,91719.0,0.00016347]
[1763526032751,0.43873803,91720.0,91719.0,0.00016347]
[1763526033761,0.43873803,91720.0,91719.0,0.00673347]
[1763526033962,0.43873803,91720.0,91719.0,0.00016347]
[1763526034260,0.54784633,91720.0,91719.0,0.00016347]
[1763526035764,0.63569659,91720.0,91719.0,0.00016347]
[1763526039058,0.52658829,91720.0,91719.0,0.00016347]
[1763526039261,0.38085803,91720.0,91719.0,0.01330347]
[1763526039668,0.36299803,91720.0,91719.0,0.01330347]
[1763526040250,0.00219803,91720.0,91719.0,0.01330347]
[1763526041857,0.07793803,91720.0,91719.0,0.00016347]
[1763526042370,0.43873803,91720.0,91719.0,0.00016347]
[1763526047676,0.43873803,91720.0,91719.0,0.00673347]
[1763526048469,0.43873803,91720.0,91719.0,0.01330347]
[1763526048662,0.00016347,91729.0,91728.0,0.1090988]
[1763526048972,0.14556223,91729.0,91728.0,0.1222388]
[1763526049176,0.05804347,91729.0,91728.0,0.1156688]
[1763526049863,0.05904347,91729.0,91728.0,0.1156688]
[1763526050061,0.06004347,91729.0,91728.0,0.1156688]
[1763526050266,0.06004347,91729.0,91728.0,0.1222388]
[1763526051271,0.14585202,91729.0,91728.0,0.1156688]
[1763526051472,0.00216347,91729.0,91723.0,0.26384]
[1763526051768,0.05788,91724.0,91723.0,0.27041]
[1763526053062,0.05788,91724.0,91723.0,0.26384]
[1763526053465,0.06007803,91720.0,91719.0,0.00016347]
[1763526053662,0.42087803,91720.0,91719.0,0.00016347]
[1763526053858,0.42087803,91720.0,91719.0,0.01330347]
[1763526054059,0.00219803,91720.0,91719.0,0.12241297]
[1763526054372,0.11410087,91729.0,91728.0,0.1222388]
[1763526054774,0.02838347,91729.0,91728.0,0.1222388]
[1763526055464,0.02938347,91729.0,91728.0,0.1222388]
[1763526055869,0.00116347,91729.0,91728.0,0.1222388]
[1763526056067,0.06004347,91729.0,91728.0,0.1222388]
[1763526056468,0.00216347,91729.0,91728.0,0.1222388]
[1763526056771,0.06004347,91729.0,91728.0,0.1222388]
[1763526057359,0.06004347,91729.0,91728.0,0.1156688]
[1763526057773,0.06004347,91729.0,91728.0,0.1222388]
[1763526058675,0.00216347,91729.0,91728.0,0.1222388]
[1763526060268,0.40384,91740.0,91739.0,0.1090857]
[1763526060468,0.43499803,91740.0,91739.0,0.3728457]
[1763526061276,0.00016347,91749.0,91748.0,0.109075]
[1763526061478,0.00016347,91749.0,91748.0,0.372875]
[1763526062269,0.02534347,91749.0,91748.0,0.372875]
[1763526062467,0.02634347,91749.0,91748.0,0.372875]
[1763526063477,0.05530347,91749.0,91748.0,0.372875]
[1763526063876,0.05414,91742.0,91741.0,0.3608]
[1763526064071,0.05414,91742.0,91741.0,0.6246]
[1763526066677,0.05430347,91749.0,91748.0,0.109075]
[1763526067981,0.05414,91742.0,91741.0,0.6246]
[1763526069278,0.05414,91742.0,91741.0,0.7336834]
[1763526070391,0.05633803,91740.0,91739.0,0.00016347]
[1763526071683,0.05633803,91740.0,91739.0,0.10924917]
[1763526071888,0.00219803,91740.0,91739.0,0.10924917]
[1763526072278,0.05733803,91740.0,91739.0,0.10924917]
[1763526072676,0.02937803,91740.0,91739.0,0.10924917]
[1763526073187,0.05733803,91740.0,91739.0,0.10924917]
[1763526074288,0.05633803,91740.0,91739.0,0.10924917]
[1763526074882,0.05733803,91740.0,91739.0,0.10924917]
[1763526075077,0.00319803,91740.0,91739.0,0.10924917]
[1763526075474,0.05633803,91740.0,91739.0,0.10924917]
[1763526075679,0.05733803,91740.0,91739.0,0.10924917]
[1763526076178,0.05633803,91740.0,91739.0,0.10924917]
[1763526076487,0.00219803,91740.0,91739.0,0.10924917]
[1763526076681,0.00016347,91749.0,91748.0,0.109075]
[1763526076880,0.00016347,91749.0,91748.0,0.372755]
[1763526077279,0.05430347,91749.0,91748.0,0.372755]
[1763526077479,0.00016347,91749.0,91748.0,0.372755]
[1763526077688,0.02534347,91749.0,91748.0,0.372755]
[1763526077890,0.02634347,91749.0,91748.0,0.372755]
[1763526078282,0.05530347,91749.0,91748.0,0.372755]
[1763526078484,0.05530347,91749.0,91748.0,0.04541562]
[1763526078782,0.05630347,91749.0,91748.0,0.04541562]
[1763526079379,0.05630347,91749.0,91748.0,0.15449062]
[1763526079583,0.00116347,91749.0,91748.0,0.15449062]
[1763526080295,0.00016347,91749.0,91748.0,0.15449062]
[1763526080589,0.00016347,91749.0,91748.0,0.51529062]
[1763526080990,0.05430347,91749.0,91748.0,0.51529062]
[1763526081390,0.05430347,91749.0,91740.0,0.3608]
[1763526081391,0.05414,91741.0,91740.0,0.3608]
[1763526081578,0.05414,91741.0,91740.0,0.7335245]
[1763526082996,0.02896,91741.0,91740.0,0.7335245]
[1763526083192,0.00016347,91749.0,91748.0,0.114515]
[1763526083492,0.00016347,91749.0,91748.0,0.378115]
[1763526084190,0.00016347,91749.0,91748.0,0.738915]
[1763526084986,0.07476,91764.0,91763.0,0.1144972]
[1763526085291,0.01811,91764.0,91763.0,0.1144972]
[1763526086088,0.01811,91770.0,91765.0,0.00544]
[1763526087089,0.02924243,91766.0,91765.0,0.00544]
[1763526088395,0.03024243,91766.0,91765.0,0.00544]
[1763526088994,0.03124243,91766.0,91765.0,0.00544]
[1763526090389,0.05868243,91766.0,91765.0,0.00544]
[1763526093089,0.07035,91764.0,91763.0,0.1116172]
[1763526093490,0.07035,91764.0,91763.0,0.1090572]
[1763526093787,0.07035,91764.0,91763.0,0.1103372]
[1763526096887,0.07035,91764.0,91762.0,0.26356]
[1763526097085,0.01636,91752.0,91749.0,0.00256]
[1763526097396,0.05399,91751.0,91750.0,0.3737927]
[1763526097985,0.05399,91751.0,91750.0,0.3725127]
[1763526099200,0.05399,91751.0,91750.0,0.3737927]
[1763526099401,0.05399,91751.0,91750.0,0.3750727]
[1763526099994,0.05399,91751.0,91750.0,0.3737927]
[1763526100195,0.05399,91751.0,91750.0,0.3725127]
[1763526100792,0.05399,91751.0,91750.0,0.3737927]
[1763526101203,0.05399,91751.0,91750.0,0.3750727]
[1763526101397,0.05399,91751.0,91750.0,0.3725127]
[1763526102195,0.05618803,91750.0,91749.0,0.109073]
[1763526103905,0.05618803,91750.0,91749.0,0.111633]
[1763526108500,0.05618803,91750.0,91749.0,0.112633]
[1763526108999,0.05618803,91750.0,91749.0,0.111633]
[1763526114520,0.05618803,91750.0,91749.0,0.109073]
[1763526114721,0.05618803,91750.0,91749.0,0.110353]
[1763526115723,0.02655,91750.0,91749.0,0.111633]
[1763526116018,0.01636,91752.0,91751.0,0.00256]
[1763526116222,0.07035,91752.0,91751.0,0.00256]
[1763526121920,0.07003,91752.0,91751.0,0.00256]
[1763526122419,0.06776,91752.0,91751.0,0.00256]
[1763526123423,0.06776,91764.0,91763.0,0.1090572]
[1763526123629,0.06776,91764.0,91763.0,0.3724972]
[1763526124728,0.01636,91764.0,91763.0,0.3724972]
[1763526124925,0.00027243,91766.0,91763.0,0.3724972]
[1763526125126,0.00027243,91766.0,91765.0,0.3608]
[1763526125430,0.01811,91770.0,91765.0,0.3608]
[1763526125636,0.41581331,91791.0,91772.0,0.1090465]
[1763526125930,0.37705,91791.0,91772.0,0.3724865]
[1763526126133,0.02438902,91773.0,91772.0,0.3724865]
[1763526126535,0.05150902,91773.0,91772.0,0.3724865]
[1763526130826,0.05150902,91773.0,91772.0,0.26344]
[1763526131139,0.0514,91759.0,91758.0,0.00016347]
[1763526133541,0.00219803,91760.0,91759.0,0.1612919]
[1763526134130,0.02647803,91760.0,91759.0,0.1612919]
[1763526134335,0.05359803,91760.0,91759.0,0.1612919]
[1763526136334,0.02647803,91760.0,91759.0,0.1612919]
[1763526136536,0.05359803,91760.0,91759.0,0.1612919]
[1763526138843,0.05359803,91760.0,91759.0,0.05223]
[1763526139234,0.0514,91759.0,91758.0,0.00016347]
[1763526140129,0.0514,91759.0,91758.0,0.02482347]
[1763526141444,0.0514,91759.0,91758.0,0.13388657]
[1763526142745,0.0524,91759.0,91758.0,0.13388657]
[1763526143838,0.0524,91759.0,91758.0,0.02482347]
[1763526145237,0.0524,91759.0,91758.0,0.04861347]
[1763526145437,0.05082,91759.0,91758.0,0.00016347]
[1763526146143,0.05082,91759.0,91758.0,0.04785347]
[1763526146648,0.05082,91759.0,91758.0,0.00016347]
[1763526146841,0.43729806,91759.0,91758.0,0.00016347]
[1763526147041,0.43729806,91759.0,91749.0,0.27725]
[1763526147042,0.04982,91737.0,91736.0,0.04769]
[1763526147440,0.04982,91737.0,91736.0,0.1567793]
[1763526147644,0.04982,91737.0,91736.0,0.1707993]
[1763526149151,0.00016347,91746.0,91745.0,0.1553186]
[1763526150050,0.00016347,91746.0,91741.0,0.6242]
[1763526150051,0.02332,91732.0,91731.0,0.2868]
[1763526150350,0.02332,91732.0,91731.0,0.30964]
[1763526151546,0.02332,91732.0,91731.0,0.31064]
[1763526151746,0.02332,91732.0,91731.0,0.31164]
[1763526152554,0.3608,91739.0,91738.0,0.04624]
[1763526155046,0.38412,91739.0,91738.0,0.04624]
[1763526157251,0.3608,91739.0,91738.0,0.04624]
[1763526157554,0.00219803,91740.0,91739.0,0.1553257]
[1763526157943,0.00016347,91746.0,91736.0,0.01402]
[1763526157944,0.00016347,91746.0,91745.0,0.1553186]
[1763526159353,0.00016347,91746.0,91745.0,0.04624]
[1763526159742,0.02348347,91746.0,91745.0,0.04624]
[1763526160755,0.04646347,91746.0,91745.0,0.04624]
[1763526161350,0.04646347,91746.0,91736.0,0.01402]
[1763526161559,0.0463,91737.0,91736.0,0.06026]
[1763526161855,0.02332,91737.0,91736.0,0.06026]
[1763526163056,0.0463,91737.0,91736.0,0.06026]
[1763526163464,0.0463,91737.0,91736.0,0.1693493]
[1763526163659,0.0463,91737.0,91736.0,0.06026]
[1763526163860,0.0463,91737.0,91736.0,0.02284]
[1763526164360,0.0463,91737.0,91736.0,0.04624]
[1763526164552,0.0463,91737.0,91736.0,0.06026]
[1763526170059,0.05793189,91760.0,91737.0,0.4]
[1763526170262,0.43824937,91769.0,91762.0,0.1090581]
[1763526170263,0.08373529,91768.0,91762.0,0.1090581]
[1763526170464,0.06274803,91770.0,91763.0,0.62428]
[1763526170664,0.06274803,91770.0,91764.0,0.109056]
[1763526170973,0.01644803,91770.0,91767.0,0.1090522]
[1763526171164,0.0463,91768.0,91767.0,0.1090522]
[1763526172555,0.01644803,91770.0,91767.0,0.1090522]
[1763526172763,0.01425,91770.0,91767.0,0.1090522]
[1763526173664,0.06055,91770.0,91767.0,0.1100522]
[1763526174660,0.01425,91770.0,91767.0,0.1100522]
[1763526175666,0.06055,91770.0,91767.0,0.1100522]
[1763526176965,0.01425,91770.0,91767.0,0.1100522]
[1763526177157,0.03757,91777.0,91776.0,0.1090418]
[1763526177362,0.01425,91777.0,91776.0,0.7332418]
[1763526177861,0.06047,91777.0,91776.0,0.6242]
[1763526180667,0.04627,91764.0,91763.0,0.3608]
[1763526180856,0.04627,91764.0,91763.0,0.6242]
[1763526181061,0.06213803,91760.0,91741.0,0.4389534]
[1763526181260,0.06213803,91760.0,91723.0,0.46867019]
[1763526181261,0.04627,91727.0,91723.0,0.3608]
[1763526181557,0.04627,91727.0,91726.0,0.62447255]
[1763526183677,0.04527,91727.0,91726.0,0.62447255]
[1763526184172,0.01367,91728.0,91727.0,0.1091]
[1763526184468,0.00016347,91736.0,91735.0,0.1090905]
[1763526184674,0.00016347,91736.0,91735.0,0.3724905]
[1763526185567,0.3608,91761.0,91743.0,0.109081]
[1763526185872,0.04627,91735.0,91734.0,0.6242]
[1763526190367,0.04627,91735.0,91734.0,0.7332917]
[1763526191677,0.04627,91735.0,91734.0,0.6242]
[1763526192579,0.04627,91735.0,91734.0,0.7332917]
[1763526193376,0.04627,91735.0,91734.0,0.3608]
[1763526199703,0.00010902,91744.0,91734.0,0.3608]
[1763526199990,0.04637902,91744.0,91742.0,0.3608]
[1763526200187,0.04637902,91744.0,91743.0,0.26344]
[1763526200188,0.00010902,91744.0,91743.0,0.26344]
[1763526200390,0.06004902,91744.0,91743.0,0.26344]
[1763526201384,0.01377902,91744.0,91743.0,0.62424]
[1763526201687,0.06004902,91744.0,91743.0,0.62424]
[1763526201883,0.01377902,91744.0,91743.0,0.62424]
[1763526202085,0.3608,91753.0,91751.0,0.1090715]
[1763526202290,0.01367,91763.0,91751.0,0.7333115]
[1763526202500,0.01367,91763.0,91762.0,0.1090584]
[1763526202696,0.01367,91763.0,91762.0,0.7332984]
[1763526203088,0.05908,91763.0,91762.0,0.7332984]
[1763526203997,0.37447,91776.0,91775.0,0.109043]
[1763526204198,0.01367,91776.0,91775.0,0.372483]
[1763526204896,0.00219803,91780.0,91775.0,0.372483]
[1763526205094,0.01277,91784.0,91783.0,0.1090335]
[1763526205290,0.01277,91784.0,91783.0,0.3724735]
[1763526205496,0.05818,91784.0,91783.0,0.3724735]
[1763526206097,0.03599,91784.0,91783.0,0.3724735]
[1763526207397,0.05818,91784.0,91783.0,0.26344]
[1763526209203,0.03597,91792.0,91783.0,0.26344]
[1763526209402,0.03597,91792.0,91791.0,0.109024]
[1763526209602,0.05889,91792.0,91791.0,0.109024]
[1763526210298,0.05889,91792.0,91791.0,0.372384]
[1763526210905,0.01377,91792.0,91791.0,0.372384]
[1763526211693,0.001,91792.0,91791.0,0.372384]
[1763526211898,0.002,91792.0,91791.0,0.372384]
[1763526212399,0.01277,91808.0,91799.0,0.1090145]
[1763526212607,0.01277,91808.0,91805.0,0.1090073]
[1763526213104,0.02347231,91806.0,91805.0,0.1090073]
[1763526213404,0.04639231,91806.0,91805.0,0.1090073]
[1763526213898,0.04639231,91806.0,91799.0,0.62416]
[1763526213899,0.04639231,91806.0,91804.0,0.1090076]
[1763526215002,0.04839231,91806.0,91804.0,0.1090076]
[1763526215198,0.02547231,91806.0,91804.0,0.1090076]
[1763526216097,0.00227231,91806.0,91804.0,0.1090076]
[1763526217202,0.04612,91801.0,91800.0,0.1090129]
[1763526217402,0.04612,91797.0,91796.0,0.00016347]
[1763526217614,0.04612,91797.0,91796.0,0.26348347]
[1763526219501,0.04612,91797.0,91796.0,0.00016347]
[1763526219702,0.04712,91797.0,91796.0,0.00016347]
[1763526220104,0.04612,91797.0,91796.0,0.00016347]
[1763526220303,0.04812,91797.0,91796.0,0.00016347]
[1763526221101,0.04712,91797.0,91796.0,0.00016347]
[1763526221409,0.04812,91797.0,91796.0,0.00016347]
[1763526223006,0.04712,91797.0,91796.0,0.00016347]
[1763526223207,0.04812,91797.0,91796.0,0.00016347]
[1763526225802,0.04812,91797.0,91796.0,0.10918147]
[1763526226007,0.04812,91797.0,91796.0,0.00016347]
[1763526230910,0.04812,91797.0,91757.0,0.1090639]
[1763526230911,0.04612,91782.0,91781.0,0.4698347]
[1763526231111,0.1551546,91782.0,91781.0,0.3258]
[1763526231315,0.1551546,91782.0,91774.0,0.109043]
[1763526231316,0.04612,91775.0,91774.0,0.109043]
[1763526231613,0.13421414,91775.0,91774.0,0.109043]
[1763526231817,0.04612,91775.0,91774.0,0.109043]
[1763526232610,0.15833025,91775.0,91774.0,0.109043]
[1763526233913,0.15933025,91775.0,91774.0,0.109043]
[1763526234314,0.16033025,91775.0,91774.0,0.109043]
[1763526235004,0.11421025,91775.0,91774.0,0.02758]
[1763526235316,0.002,91775.0,91774.0,0.02758]
[1763526236118,0.00016347,91784.0,91783.0,0.1346135]
[1763526236314,0.00016347,91784.0,91783.0,0.7587335]
[1763526239118,0.02336347,91784.0,91783.0,0.7587335]
[1763526239518,0.03614347,91784.0,91783.0,0.7587335]
[1763526239918,0.05852347,91784.0,91783.0,0.7587335]
[1763526241813,0.05852347,91784.0,91783.0,0.62412]
[1763526242117,0.04361,91773.0,91772.0,0.4934257]